[Event "4NCL Div 2 2024-25"]
[Site "England"]
[Date "2024.11.23"]
[Round "1.9"]
[White "Gallana, Marco"]
[Black "Korshunov, Sergey And."]
[Result "0-1"]
[ECO "D41"]
[WhiteElo "2216"]
[BlackElo "2330"]
[Annotator "RC"]
[PlyCount "102"]
[EventDate "2024.11.23"]
[EventType "team-tourn"]
[EventCountry "ENG"]
[SourceTitle "playchess.com"]
[Source "ChessBase"]
[SourceQuality "1"]
[TimeControl "40/6000+30:3000+30"]

1. c4 {[%emt 0:10:19]} c5 {[%emt 0:10:47]} 2. Nf3 {[%emt 0:00:11]} Nf6 {[%emt 0:00:04]} 3. Nc3 {[%emt 0:00:31]} Nc6 {[%emt 0:00:44]} 4. e3 {[%emt 0:00:27]} e6 {[%emt 0:05:25]} 5. d4 {[%emt 0:00:07]} d5 {[%emt 0:00:03]} 6. cxd5 {[%emt 0:00:14]} Nxd5 {[%emt 0:00:50]} 7. Bb5 {[%emt 0:00:35]} cxd4 {[%emt 0:07:57]} 8. exd4 {[%emt 0:17:20]} Be7 {[%emt 0:02:39]} 9. O-O {[%emt 0:17:48]} O-O {[%emt 0:03:27]} 10. Re1 {[%emt 0:00:19]} a6 {[%emt 0:18:22]} 11. Bd3 {[%emt 0:07:15]} Bf6 {[%emt 0:07:23]} 12. Be4 {[%emt 0:08:24]} Nce7 {[%emt 0:07:31]} 13. Bg5 {[%emt 0:03:42]} Bxg5 {[%emt 0:07:27]} 14. Nxg5 {[%emt 0:01:01]} Nf6 {[%emt 0:00:07]} 15. Bc2 {[%emt 0:06:17]} Nc6 {[%emt 0:04:07]} 16. Nf3 {[%emt 0:03:52]} b6 {[%emt 0:01:21]} 17. a3 {[%emt 0:01:29]} Bb7 {[%emt 0:00:24]} 18. Qd3 {[%emt 0:00:25]} Ne7 {[%emt 0:02:42]} 19. Rad1 {[%emt 0:00:44]} Ng6 {[%emt 0:02:45]} 20. Qe3 {[%emt 0:04:46]} Ng4 {[%emt 0:01:41]} 21. Qd3 {[%emt 0:00:48]} Nf6 {[%emt 0:01:27]} 22. Qe3 {[%emt 0:00:12]} Ng4 {[%emt 0:04:15]} 23. Qd3 {[%emt 0:00:10]} Rc8 {[%emt 0:03:11]} 24. Bb1 {[%emt 0:01:58]} Nf6 {[%emt 0:00:13]} 25. Qe3 {[%emt 0:00:12]} Ng4 {[%emt 0:01:22]} 26. Qd3 {[%emt 0:00:08]} Nf6 {[%emt 0:01:32]} 27. Qe3 {[%emt 0:00:12]} Nd5 {[%emt 0:06:09]} 28. Nxd5 {[%emt 0:01:27]} Qxd5 {[%emt 0:00:04]} 29. Rc1 {[%emt 0:15:58]} a5 {[%emt 0:01:21]} 30. Qd2 {[%emt 0:02:35]} Qh5 {[%emt 0:02:04]} 31. Be4 {[%emt 0:00:25]} Rxc1 {[%emt 0:01:25]} 32. Qxc1 {[%emt 0:00:09]} Rc8 {[%emt 0:01:29]} 33. Qe3 {[%emt 0:00:29]} Bxe4 {[%emt 0:01:45]} 34. Qxe4 {[%emt 0:00:09]} Qb5 {[%emt 0:00:08]} 35. h4 {[%emt 0:02:36]} h6 {[%emt 0:01:59]} 36. Qg4 {[%emt 0:03:43]} Qxb2 {[%emt 0:03:03]} 37. h5 {[%emt 0:01:11]} Nf8 {[%emt 0:00:12]} 38. Qf4 {[%emt 0:00:12]} Qxa3 {[%emt 0:00:53]} 39. Ne5 {[%emt 0:00:09]} Qe7 {[%emt 0:00:09]} 40. Re3 {[%emt 0:00:38]} Nd7 {[%emt 0:01:06]} 41. Nd3 {[%emt 0:28:12]} Qg5 {[%emt 0:27:05]} 42. Qf3 {[%emt 0:03:57]} Qd5 {[%emt 0:00:54]} 43. Qxd5 {[%emt 0:01:42]} exd5 {[%emt 0:00:08]} 44. Re7 {[%emt 0:00:22]} Rd8 {[%emt 0:00:50]} 45. Ne5 {[%emt 0:00:53]} Nxe5 {[%emt 0:04:20]} 46. dxe5 {[%emt 0:00:06]} Ra8 {[%emt 0:07:02]} 47. Rb7 {[%emt 0:11:45]} Ra6 {[%emt 0:00:21]} 48. f4 {[%emt 0:02:09]} a4 {[%emt 0:00:07]} 49. f5 {[%emt 0:01:33]} a3 {[%emt 0:00:05]} 50. e6 {[%emt 0:00:42]} fxe6 {[%emt 0:00:08]} 51. fxe6 {[%emt 0:00:28]} a2 {[%emt 0:00:05]} 0-1

[Event "4NCL Div 2 2024-25"]
[Site "England"]
[Date "2024.11.23"]
[Round "1.10"]
[White "Wilks, Simon"]
[Black "Pein, Jonathan"]
[Result "0-1"]
[ECO "B01"]
[WhiteElo "2078"]
[BlackElo "2249"]
[Annotator "RC"]
[PlyCount "78"]
[EventDate "2024.11.23"]
[EventType "team-tourn"]
[EventCountry "ENG"]
[SourceTitle "playchess.com"]
[Source "ChessBase"]
[SourceQuality "1"]
[TimeControl "40/6000+30:3000+30"]

1. e4 {[%emt 0:12:52]} d5 {[%emt 0:10:04]} 2. exd5 {[%emt 0:00:33]} Qxd5 {[%emt 0:00:02]} 3. Nc3 {[%emt 0:00:47]} Qa5 {[%emt 0:00:02]} 4. d4 {[%emt 0:01:07]} Nf6 {[%emt 0:00:07]} 5. Nf3 {[%emt 0:02:38]} Nc6 {[%emt 0:00:09]} 6. d5 {[%emt 0:17:04]} Nb4 {[%emt 0:00:03]} 7. Bc4 {[%emt 0:03:20]} Bg4 {[%emt 0:02:45]} 8. a3 {[%emt 0:21:07]} Bxf3 {[%emt 0:11:52]} 9. gxf3 {[%emt 0:02:11]} O-O-O {[%emt 0:01:39]} 10. Bd2 {[%emt 0:05:51]} Qc5 {[%emt 0:01:01]} 11. axb4 {[%emt 0:01:25]} Qxc4 {[%emt 0:00:02]} 12. Rxa7 {[%emt 0:00:26]} Nxd5 {[%emt 0:00:39]} 13. b3 {[%emt 0:10:44]} Qd4 {[%emt 0:13:02]} 14. Qa1 {[%emt 0:07:35]} e6 {[%emt 0:22:39]} 15. Ra8+ {[%emt 0:05:48]} Kd7 {[%emt 0:00:02]} 16. Qa4+ {[%emt 0:05:19]} c6 {[%emt 0:04:35]} 17. Rxd8+ {[%emt 0:03:55]} Kxd8 {[%emt 0:00:01]} 18. Qa8+ {[%emt 0:01:05]} Kc7 {[%emt 0:03:25]} 19. Qa5+ {[%emt 0:01:13]} Kd7 {[%emt 0:03:06]} 20. Nxd5 {[%emt 0:02:00]} exd5 {[%emt 0:01:48]} 21. b5 {[%emt 0:00:54]} Bd6 {[%emt 0:03:40]} 22. bxc6+ {[%emt 0:00:49]} bxc6 {[%emt 0:00:06]} 23. Bc3 {[%emt 0:02:06]} Qf4 {[%emt 0:18:10]} 24. Kf1 {[%emt 0:01:00]} Qxf3 {[%emt 0:00:58]} 25. Rg1 {[%emt 0:00:22]} Qd1+ {[%emt 0:03:13]} 26. Kg2 {[%emt 0:00:07]} Qg4+ {[%emt 0:04:04]} 27. Kf1 {[%emt 0:00:38]} Qh3+ {[%emt 0:00:49]} 28. Ke2 {[%emt 0:01:02]} Re8+ {[%emt 0:00:28]} 29. Kd1 {[%emt 0:00:24]} Qxh2 {[%emt 0:01:20]} 30. Qa7+ {[%emt 0:00:32]} Bc7 {[%emt 0:00:09]} 31. f3 {[%emt 0:00:14]} g6 {[%emt 0:04:35]} 32. Ba5 {[%emt 0:00:46]} Qe2+ {[%emt 0:00:44]} 33. Kc1 {[%emt 0:00:10]} Qe3+ {[%emt 0:00:14]} 34. Qxe3 {[%emt 0:00:20]} Rxe3 {[%emt 0:00:00]} 35. Bxc7 {[%emt 0:00:28]} Kxc7 {[%emt 0:00:01]} 36. Rf1 {[%emt 0:00:16]} h5 {[%emt 0:00:57]} 37. f4 {[%emt 0:00:01]} Kd6 {[%emt 0:00:27]} 38. Kd2 {[%emt 0:00:37]} d4 {[%emt 0:00:24]} 39. f5 {[%emt 0:00:06]} g5 {[%emt 0:00:26]} 0-1

[Event "4NCL Div 2 2024-25"]
[Site "England"]
[Date "2024.11.23"]
[Round "1.11"]
[White "Horton, Jamie A"]
[Black "Nicholas, Koichi B"]
[Result "1-0"]
[ECO "E36"]
[WhiteElo "2163"]
[BlackElo "2089"]
[Annotator "RC"]
[PlyCount "85"]
[EventDate "2024.11.23"]
[EventType "team-tourn"]
[EventCountry "ENG"]
[SourceTitle "playchess.com"]
[Source "ChessBase"]
[SourceQuality "1"]
[TimeControl "40/6000+30:3000+30"]

1. d4 {[%emt 0:10:03]} Nf6 {[%emt 0:10:22]} 2. c4 {[%emt 0:00:43]} e6 {[%emt 0:00:47]} 3. Nc3 {[%emt 0:02:31]} Bb4 {[%emt 0:00:36]} 4. Qc2 {[%emt 0:00:10]} O-O {[%emt 0:00:30]} 5. a3 {[%emt 0:00:35]} Bxc3+ {[%emt 0:00:18]} 6. Qxc3 {[%emt 0:00:02]} d5 {[%emt 0:00:23]} 7. Bg5 {[%emt 0:04:12]} c5 {[%emt 0:00:53]} 8. dxc5 {[%emt 0:11:36]} d4 {[%emt 0:00:43]} 9. Qc2 {[%emt 0:08:58]} h6 {[%emt 0:01:22]} 10. Bxf6 {[%emt 0:13:58]} Qxf6 {[%emt 0:00:21]} 11. g3 {[%emt 0:00:32]} Nd7 {[%emt 0:18:44]} 12. Rd1 {[%emt 0:02:21]} e5 {[%emt 0:06:33]} 13. b4 {[%emt 0:06:37]} Qc6 {[%emt 0:17:16]} 14. Nf3 {[%emt 0:04:57]} d3 {[%emt 0:11:33]} 15. Rxd3 {[%emt 0:10:56]} Nxc5 {[%emt 0:13:36]} 16. Rd5 {[%emt 0:01:24]} Nd7 {[%emt 0:03:10]} 17. Bg2 {[%emt 0:07:44]} Re8 {[%emt 0:01:41]} 18. O-O {[%emt 0:02:45]} Qf6 {[%emt 0:01:41]} 19. c5 {[%emt 0:05:36]} Nf8 {[%emt 0:00:35]} 20. Rd6 {[%emt 0:00:25]} Be6 {[%emt 0:03:50]} 21. Rfd1 {[%emt 0:01:25]} Ng6 {[%emt 0:01:27]} 22. h4 {[%emt 0:05:57]} Rab8 {[%emt 0:07:52]} 23. Nd2 {[%emt 0:04:16]} Qe7 {[%emt 0:01:25]} 24. Nc4 {[%emt 0:01:42]} Bxc4 {[%emt 0:01:05]} 25. Qxc4 {[%emt 0:00:08]} Nf8 {[%emt 0:00:18]} 26. Qd5 {[%emt 0:01:58]} Qc7 {[%emt 0:01:38]} 27. Bh3 {[%emt 0:00:30]} Re7 {[%emt 0:01:12]} 28. e3 {[%emt 0:01:06]} Rbe8 {[%emt 0:00:26]} 29. Kf1 {[%emt 0:01:00]} g6 {[%emt 0:01:49]} 30. h5 {[%emt 0:00:33]} Kg7 {[%emt 0:00:20]} 31. hxg6 {[%emt 0:00:13]} Nxg6 {[%emt 0:00:09]} 32. Qe4 {[%emt 0:00:19]} b6 {[%emt 0:01:35]} 33. c6 {[%emt 0:00:54]} f6 {[%emt 0:02:05]} 34. Bf5 {[%emt 0:00:39]} Nf8 {[%emt 0:00:05]} 35. b5 {[%emt 0:00:35]} a6 {[%emt 0:00:48]} 36. a4 {[%emt 0:00:21]} axb5 {[%emt 0:00:08]} 37. axb5 {[%emt 0:00:01]} Qa7 {[%emt 0:00:20]} 38. Qg4+ {[%emt 0:00:11]} Kf7 {[%emt 0:00:15]} 39. Qh4 {[%emt 0:00:29]} Qa5 {[%emt 0:01:12]} 40. Rxf6+ {[%emt 0:01:16]} Kg8 {[%emt 0:00:38]} 41. Qg4+ {[%emt 0:23:42]} Kh8 {[%emt 0:21:20]} 42. Rxh6+ {[%emt 0:00:20]} Nh7 {[%emt 0:00:11]} 43. Bxh7 {[%emt 0:00:18]} 1-0

[Event "4NCL Div 2 2024-25"]
[Site "England"]
[Date "2024.11.23"]
[Round "1.12"]
[White "Menzies, Colin"]
[Black "Maciol, Ryszard"]
[Result "0-1"]
[ECO "A43"]
[WhiteElo "2199"]
[BlackElo "2125"]
[Annotator "RC"]
[PlyCount "82"]
[EventDate "2024.11.23"]
[EventType "team-tourn"]
[EventCountry "ENG"]
[SourceTitle "playchess.com"]
[Source "ChessBase"]
[SourceQuality "1"]
[TimeControl "40/6000+30:3000+30"]

1. Nf3 {[%emt 0:10:02]} Nf6 {[%emt 0:13:41]} 2. d4 {[%emt 0:00:14]} c5 {[%emt 0:02:53]} 3. d5 {[%emt 0:02:14]} b5 {[%emt 0:00:37]} 4. a4 {[%emt 0:04:44]} Bb7 {[%emt 0:03:56]} 5. e4 {[%emt 0:06:06]} Nxe4 {[%emt 0:02:56]} 6. axb5 {[%emt 0:00:50]} e6 {[%emt 0:03:37]} 7. dxe6 {[%emt 0:07:10]} fxe6 {[%emt 0:01:21]} 8. Bd3 {[%emt 0:06:05]} Be7 {[%emt 0:03:53]} 9. Qe2 {[%emt 0:09:26]} Nd6 {[%emt 0:14:13]} 10. h4 {[%emt 0:13:56]} c4 {[%emt 0:07:47]} 11. Bxc4 {[%emt 0:04:18]} Nxc4 {[%emt 0:00:33]} 12. Qxc4 {[%emt 0:00:08]} a6 {[%emt 0:00:25]} 13. bxa6 {[%emt 0:04:14]} Rxa6 {[%emt 0:06:13]} 14. Na3 {[%emt 0:03:02]} O-O {[%emt 0:08:03]} 15. Be3 {[%emt 0:07:18]} Qa5+ {[%emt 0:09:28]} 16. Bd2 {[%emt 0:05:33]} Qf5 {[%emt 0:03:36]} 17. Rh3 {[%emt 0:00:52]} Bd5 {[%emt 0:06:12]} 18. Qd3 {[%emt 0:05:01]} Be4 {[%emt 0:05:53]} 19. Qe2 {[%emt 0:00:02]} Bf6 {[%emt 0:02:55]} 20. c3 {[%emt 0:07:05]} Ra4 {[%emt 0:00:58]} 21. Ng5 {[%emt 0:01:16]} Bxg2 {[%emt 0:01:15]} 22. Rg3 {[%emt 0:01:22]} Rxh4 {[%emt 0:00:47]} 23. O-O-O {[%emt 0:01:16]} Bd5 {[%emt 0:02:44]} 24. f3 {[%emt 0:04:53]} Nc6 {[%emt 0:02:06]} 25. Nc2 {[%emt 0:00:46]} Na5 {[%emt 0:01:50]} 26. Ne4 {[%emt 0:01:48]} Nb3+ {[%emt 0:01:14]} 27. Kb1 {[%emt 0:00:00]} Bxe4 {[%emt 0:01:06]} 28. fxe4 {[%emt 0:00:09]} Rxe4 {[%emt 0:00:37]} 29. Qd3 {[%emt 0:00:50]} Nxd2+ {[%emt 0:01:15]} 30. Rxd2 {[%emt 0:00:46]} d5 {[%emt 0:00:38]} 31. Ne3 {[%emt 0:00:53]} Qe5 {[%emt 0:01:13]} 32. Rdg2 {[%emt 0:00:41]} h5 {[%emt 0:01:06]} 33. Rg1 {[%emt 0:02:26]} Rb8 {[%emt 0:00:07]} 34. Nc2 {[%emt 0:00:40]} Re2 {[%emt 0:01:22]} 35. Rf3 {[%emt 0:00:10]} Re4 {[%emt 0:00:32]} 36. Qf1 {[%emt 0:00:30]} Kh8 {[%emt 0:00:35]} 37. Nd4 {[%emt 0:00:05]} Rxd4 {[%emt 0:00:33]} 38. cxd4 {[%emt 0:00:56]} Qxd4 {[%emt 0:00:17]} 39. Rg2 {[%emt 0:00:01]} Rxb2+ {[%emt 0:00:15]} 40. Kc1 {[%emt 0:00:00]} Bg5+ {[%emt 0:00:44]} 41. Rxg5 {[%emt 0:50:17]} Qd2# {[%emt 0:50:38]} 0-1

[Event "4NCL Div 2 2024-25"]
[Site "England"]
[Date "2024.11.23"]
[Round "1.13"]
[White "Franco, Gaston"]
[Black "Verbytski, Oleg"]
[Result "0-1"]
[ECO "D61"]
[WhiteElo "2070"]
[BlackElo "1968"]
[Annotator "NA RC"]
[PlyCount "68"]
[EventDate "2024.11.23"]
[EventType "team-tourn"]
[EventCountry "ENG"]
[SourceTitle "playchess.com"]
[Source "ChessBase"]
[SourceQuality "1"]
[TimeControl "40/6000+30:3000+30"]

1. d4 {[%emt 0:10:03]} d5 {[%emt 0:10:04]} 2. c4 {[%emt 0:00:09]} e6 {[%emt 0:00:05]} 3. Nc3 {[%emt 0:00:05]} Nf6 {[%emt 0:00:07]} 4. Bg5 {[%emt 0:00:11]} Be7 {[%emt 0:01:00]} 5. Nf3 {[%emt 0:00:27]} c6 {[%emt 0:00:21]} 6. e3 {[%emt 0:00:19]} h6 {[%emt 0:00:10]} 7. Bh4 {[%emt 0:00:16]} O-O {[%emt 0:05:26]} 8. Qc2 {[%emt 0:01:47]} Re8 {[%emt 0:00:56]} 9. Rd1 {[%emt 0:01:56]} Nbd7 {[%emt 0:00:45]} 10. Bd3 {[%emt 0:04:57]} dxc4 {[%emt 0:00:10]} 11. Bxc4 {[%emt 0:00:08]} b5 {[%emt 0:00:06]} 12. Be2 {[%emt 0:04:22]} Bb7 {[%emt 0:01:45]} 13. O-O {[%emt 0:02:11]} Rc8 {[%emt 0:00:49]} 14. a3 {[%emt 0:14:09]} a5 {[%emt 0:00:48]} 15. Ne5 {[%emt 0:14:49]} Qc7 {[%emt 0:54:53]} 16. Bg3 {[%emt 0:30:52]} Qb6 {[%emt 0:04:54]} 17. Qb3 {[%emt 0:04:42]} Red8 {[%emt 0:05:37]} 18. f4 {[%emt 0:04:50]} a4 {[%emt 0:04:41]} 19. Qa2 {[%emt 0:03:00]} Nxe5 {[%emt 0:09:27]} 20. fxe5 {[%emt 0:00:07]} Nd5 {[%emt 0:00:05]} 21. Nxd5 {[%emt 0:05:04]} Rxd5 {[%emt 0:02:27]} 22. Bf3 {[%emt 0:02:51]} Rd7 {[%emt 0:02:00]} 23. Bh5 {[%emt 0:01:09]} Bg5 {[%emt 0:00:31]} 24. Bf4 {[%emt 0:01:08]} Bxf4 {[%emt 0:00:57]} 25. Rxf4 {[%emt 0:00:07]} c5 {[%emt 0:00:05]} 26. Qb1 {[%emt 0:01:12]} cxd4 {[%emt 0:01:39]} 27. exd4 {[%emt 0:00:49]} Rc4 {[%emt 0:00:38]} 28. Qd3 {[%emt 0:00:49]} Qc7 {[%emt 0:00:44]} 29. Rdf1 {[%emt 0:01:13]} Rc2 {[%emt 0:00:54]} 30. Rg4 {[%emt 0:00:34]} Rxb2 {[%emt 0:01:05]} 31. Qe3 {[%emt 0:00:58]} Kh8 {[%emt 0:01:27]} 32. Qg3 {[%emt 0:00:43]} Rxg2+ {[%emt 0:00:08]} 33. Qxg2 {[%emt 0:01:03]} Bxg2 {[%emt 0:00:08]} 34. Rxg2 {[%emt 0:00:00]} g6 {[%emt 0:00:35]} 0-1

[Event "4NCL Div 2 2024-25"]
[Site "England"]
[Date "2024.11.23"]
[Round "1.14"]
[White "Handley, Michael R"]
[Black "Serbanescu, Diana-Maria"]
[Result "1/2-1/2"]
[ECO "E70"]
[WhiteElo "1993"]
[BlackElo "1992"]
[Annotator "NA RC"]
[PlyCount "68"]
[EventDate "2024.11.23"]
[EventType "team-tourn"]
[EventCountry "ENG"]
[SourceTitle "playchess.com"]
[Source "ChessBase"]
[SourceQuality "1"]
[TimeControl "40/6000+30:3000+30"]

1. d4 {[%emt 0:10:03]} Nf6 {[%emt 0:10:09]} 2. c4 {[%emt 0:00:05]} g6 {[%emt 0:00:05]} 3. Nc3 {[%emt 0:00:06]} Bg7 {[%emt 0:00:05]} 4. e4 {[%emt 0:00:04]} d6 {[%emt 0:00:10]} 5. Nge2 {[%emt 0:00:03]} O-O {[%emt 0:01:09]} 6. Ng3 {[%emt 0:00:02]} e5 {[%emt 0:04:49]} 7. d5 {[%emt 0:00:03]} a5 {[%emt 0:01:12]} 8. Be2 {[%emt 0:00:07]} Na6 {[%emt 0:01:29]} 9. h4 {[%emt 0:00:05]} h6 {[%emt 0:07:37]} 10. Be3 {[%emt 0:05:59]} Kh7 {[%emt 0:01:22]} 11. h5 {[%emt 0:00:42]} g5 {[%emt 0:03:30]} 12. Nf1 {[%emt 0:22:06]} b6 {[%emt 0:04:29]} 13. b3 {[%emt 0:03:46]} Nc5 {[%emt 0:00:55]} 14. Bxc5 {[%emt 0:00:11]} bxc5 {[%emt 0:03:05]} 15. Ne3 {[%emt 0:00:06]} Bd7 {[%emt 0:03:13]} 16. Qc2 {[%emt 0:11:31]} Kh8 {[%emt 0:06:45]} 17. g4 {[%emt 0:14:00]} Re8 {[%emt 0:07:41]} 18. O-O {[%emt 0:00:43]} Qc8 {[%emt 0:06:48]} 19. f3 {[%emt 0:00:09]} Qa6 {[%emt 0:08:01]} 20. Nb5 {[%emt 0:04:08]} Qb6 {[%emt 0:01:06]} 21. Kg2 {[%emt 0:00:12]} Bf8 {[%emt 0:02:15]} 22. Rfd1 {[%emt 0:04:48]} Kg8 {[%emt 0:01:36]} 23. Rab1 {[%emt 0:08:15]} Rec8 {[%emt 0:05:43]} 24. a3 {[%emt 0:04:43]} Bg7 {[%emt 0:00:31]} 25. Qd2 {[%emt 0:01:09]} Ra6 {[%emt 0:02:37]} 26. a4 {[%emt 0:05:49]} Raa8 {[%emt 0:01:44]} 27. Bd3 {[%emt 0:00:29]} Re8 {[%emt 0:01:14]} 28. Bc2 {[%emt 0:00:29]} Qb8 {[%emt 0:01:39]} 29. Qe2 {[%emt 0:01:49]} Qc8 {[%emt 0:00:42]} 30. Rd2 {[%emt 0:01:07]} Qb8 {[%emt 0:00:47]} 31. Nc3 {[%emt 0:00:59]} Qc8 {[%emt 0:00:38]} 32. Rh1 {[%emt 0:00:47]} Rb8 {[%emt 0:00:25]} 33. Kg3 {[%emt 0:00:26]} Nh7 {[%emt 0:01:21]} 34. Qd3 {[%emt 0:00:33]} Nf6 {[%emt 0:00:23]} 1/2-1/2

[Event "4NCL Div 2 2024-25"]
[Site "England"]
[Date "2024.11.23"]
[Round "1.15"]
[White "Quinn, John M"]
[Black "Shepherd, Tom"]
[Result "1/2-1/2"]
[ECO "D41"]
[WhiteElo "2102"]
[BlackElo "1905"]
[Annotator "NA RC"]
[PlyCount "53"]
[EventDate "2024.11.23"]
[EventType "team-tourn"]
[EventCountry "ENG"]
[SourceTitle "playchess.com"]
[Source "ChessBase"]
[SourceQuality "1"]
[TimeControl "40/6000+30:3000+30"]

1. d4 {[%emt 0:10:03]} d5 {[%emt 0:10:05]} 2. c4 {[%emt 0:00:09]} e6 {[%emt 0:00:04]} 3. Nc3 {[%emt 0:00:05]} Nf6 {[%emt 0:00:04]} 4. cxd5 {[%emt 0:00:53]} Nxd5 {[%emt 0:00:06]} 5. e4 {[%emt 0:00:30]} Nxc3 {[%emt 0:00:04]} 6. bxc3 {[%emt 0:00:06]} c5 {[%emt 0:00:03]} 7. Nf3 {[%emt 0:06:37]} cxd4 {[%emt 0:03:01]} 8. cxd4 {[%emt 0:00:10]} Bb4+ {[%emt 0:00:02]} 9. Bd2 {[%emt 0:00:10]} Bxd2+ {[%emt 0:00:03]} 10. Qxd2 {[%emt 0:00:10]} O-O {[%emt 0:00:03]} 11. Be2 {[%emt 0:04:22]} b6 {[%emt 0:00:04]} 12. O-O {[%emt 0:00:34]} Bb7 {[%emt 0:00:03]} 13. Qe3 {[%emt 0:07:31]} Nd7 {[%emt 0:00:04]} 14. Bd3 {[%emt 0:21:51]} Nf6 {[%emt 0:09:13]} 15. h3 {[%emt 0:19:25]} Rc8 {[%emt 0:02:51]} 16. Rac1 {[%emt 0:01:09]} h6 {[%emt 0:03:47]} 17. Rxc8 {[%emt 0:05:04]} Qxc8 {[%emt 0:00:08]} 18. Rc1 {[%emt 0:00:06]} Qa8 {[%emt 0:00:31]} 19. Nd2 {[%emt 0:06:34]} Rc8 {[%emt 0:02:08]} 20. Rxc8+ {[%emt 0:03:11]} Qxc8 {[%emt 0:00:07]} 21. Nc4 {[%emt 0:01:00]} Qc7 {[%emt 0:13:22]} 22. e5 {[%emt 0:03:36]} Nd5 {[%emt 0:00:07]} 23. Qe4 {[%emt 0:00:29]} g6 {[%emt 0:00:05]} 24. Nd6 {[%emt 0:02:38]} Ba8 {[%emt 0:03:44]} 25. Qh4 {[%emt 0:01:57]} Qc1+ {[%emt 0:10:44]} 26. Bf1 {[%emt 0:00:05]} Qg5 {[%emt 0:01:59]} 27. Qxg5 {[%emt 0:02:05]} 1/2-1/2

[Event "4NCL Div 2 2024-25"]
[Site "England"]
[Date "2024.11.23"]
[Round "1.16"]
[White "Alizada, Eldar"]
[Black "Lea, Daniel J"]
[Result "0-1"]
[ECO "D36"]
[WhiteElo "1998"]
[BlackElo "2006"]
[Annotator "NA RC"]
[PlyCount "120"]
[EventDate "2024.11.23"]
[EventType "team-tourn"]
[EventCountry "ENG"]
[SourceTitle "playchess.com"]
[Source "ChessBase"]
[SourceQuality "1"]
[TimeControl "40/6000+30:3000+30"]

1. d4 {[%emt 0:10:03]} d5 {[%emt 0:10:06]} 2. c4 {[%emt 0:00:07]} e6 {[%emt 0:00:11]} 3. Nc3 {[%emt 0:00:13]} Nf6 {[%emt 0:00:09]} 4. cxd5 {[%emt 0:00:45]} exd5 {[%emt 0:00:06]} 5. Bg5 {[%emt 0:00:06]} Be7 {[%emt 0:00:20]} 6. e3 {[%emt 0:00:17]} c6 {[%emt 0:00:24]} 7. Bd3 {[%emt 0:00:23]} Nbd7 {[%emt 0:00:31]} 8. Nge2 {[%emt 0:00:35]} O-O {[%emt 0:00:27]} 9. O-O {[%emt 0:00:24]} Re8 {[%emt 0:00:39]} 10. Qc2 {[%emt 0:01:18]} h6 {[%emt 0:00:54]} 11. Bh4 {[%emt 0:00:49]} a5 {[%emt 0:01:01]} 12. f3 {[%emt 0:07:30]} b5 {[%emt 0:01:25]} 13. a3 {[%emt 0:05:29]} Ba6 {[%emt 0:07:08]} 14. e4 {[%emt 0:09:19]} dxe4 {[%emt 0:08:17]} 15. fxe4 {[%emt 0:13:15]} Ng4 {[%emt 0:15:10]} 16. Bxe7 {[%emt 0:01:50]} Rxe7 {[%emt 0:06:05]} 17. Rf4 {[%emt 0:04:46]} Ne3 {[%emt 0:13:29]} 18. Qd2 {[%emt 0:08:01]} Nc4 {[%emt 0:02:52]} 19. Bxc4 {[%emt 0:00:35]} bxc4 {[%emt 0:00:04]} 20. Ng3 {[%emt 0:05:36]} Nc5 {[%emt 0:11:00]} 21. Rd1 {[%emt 0:16:17]} Nd3 {[%emt 0:03:01]} 22. Nf5 {[%emt 0:00:16]} Re6 {[%emt 0:04:50]} 23. Rf3 {[%emt 0:13:20]} Rb8 {[%emt 0:10:04]} 24. Rg3 {[%emt 0:00:11]} Rg6 {[%emt 0:00:37]} 25. Na4 {[%emt 0:00:14]} Rxg3 {[%emt 0:02:35]} 26. hxg3 {[%emt 0:00:02]} Bc8 {[%emt 0:04:07]} 27. Qc3 {[%emt 0:03:52]} Bxf5 {[%emt 0:03:39]} 28. exf5 {[%emt 0:00:02]} Qd5 {[%emt 0:00:56]} 29. Kh2 {[%emt 0:03:33]} Rb3 {[%emt 0:00:35]} 30. Qc2 {[%emt 0:01:10]} Qxd4 {[%emt 0:00:46]} 31. Qe2 {[%emt 0:00:56]} Rb8 {[%emt 0:02:17]} 32. Rd2 {[%emt 0:01:45]} Qf6 {[%emt 0:00:59]} 33. Qe4 {[%emt 0:00:34]} Qg5 {[%emt 0:01:16]} 34. Re2 {[%emt 0:01:59]} Rd8 {[%emt 0:00:39]} 35. Nc3 {[%emt 0:00:24]} Nc5 {[%emt 0:00:34]} 36. Qxc4 {[%emt 0:01:55]} Qxf5 {[%emt 0:00:20]} 37. Qh4 {[%emt 0:00:31]} Rb8 {[%emt 0:00:41]} 38. Rd2 {[%emt 0:00:19]} Ne6 {[%emt 0:00:35]} 39. Qc4 {[%emt 0:00:37]} Qg5 {[%emt 0:00:33]} 40. Rf2 {[%emt 0:00:28]} Qh5+ {[%emt 0:00:29]} 41. Kg1 {[%emt 0:50:36]} Qe5 {[%emt 0:28:38]} 42. Qxc6 {[%emt 0:00:00]} Qe1+ {[%emt 0:03:29]} 43. Rf1 {[%emt 0:00:00]} Qxg3 {[%emt 0:02:06]} 44. b4 {[%emt 0:00:00]} Nd4 {[%emt 0:03:40]} 45. Qc4 {[%emt 0:00:00]} Qxc3 {[%emt 0:00:22]} 46. Qxf7+ {[%emt 0:00:00]} Kh8 {[%emt 0:04:42]} 47. Qe7 {[%emt 0:00:00]} axb4 {[%emt 0:04:09]} 48. Rf8+ {[%emt 0:00:00]} Rxf8 {[%emt 0:00:07]} 49. Qxf8+ {[%emt 0:00:00]} Kh7 {[%emt 0:00:08]} 50. axb4 {[%emt 0:00:00]} Qe1+ {[%emt 0:02:01]} 51. Kh2 {[%emt 0:00:00]} Qe5+ {[%emt 0:00:47]} 52. Kg1 {[%emt 0:00:00]} Ne2+ {[%emt 0:02:04]} 53. Kf2 {[%emt 0:00:00]} Qf4+ {[%emt 0:01:33]} 54. Qxf4 {[%emt 0:00:00]} Nxf4 {[%emt 0:00:03]} 55. Kf3 {[%emt 0:00:00]} Nd5 {[%emt 0:00:19]} 56. b5 {[%emt 0:00:00]} Kg6 {[%emt 0:00:11]} 57. Kg4 {[%emt 0:00:00]} Kf6 {[%emt 0:00:19]} 58. Kh5 {[%emt 0:00:00]} Kf5 {[%emt 0:01:08]} 59. g4+ {[%emt 0:00:00]} Kf4 {[%emt 0:00:33]} 60. Kg6 {[%emt 0:00:00]} Kxg4 {[%emt 0:00:16]} 0-1